Cogmind - Beta 17 @@@ ROGUE MODE // 2026.06.23 @ 22:06:10 // Winter2019/RPGLIKE Player: PersmaticCoreSerial_K4E2 Result: Self-destructed Performance ------------- Evolutions (1) 500 Regions Visited (2) 400 Robots Destroyed (12) 60 Value Destroyed (116) 116 Prototype IDs (0) 0 Alien Tech Used (0) 0 Bonus (0) 0 TOTAL SCORE: 1076 Bonus ------- None Cogmind --------- Core Integrity 588/600 Matter 400/400 Energy 240/250 System Corruption 0% Temperature Cool (0) Movement Rolling (80) Location -9/Materials Parts ------- > --- POWER (1) -------- Ion Engine > --- PROPULSION (2) --- Wheel Wheel > --- UTILITY (3) ------ Medium Matter Pod ECM Suite Light Armor Plating > --- WEAPON (2) ------- (None) > --- INVENTORY (2) ---- (None) Peak State ------------ > --- POWER ------------ Ion Engine > --- PROPULSION ------- Wheel Wheel > --- UTILITY ---------- Small Matter Pod Medium Matter Pod Seismic Detector > --- WEAPON ----------- Light Assault Rifle > --- INVENTORY -------- (None) [Rating: 7] Favorites ----------- Power Ion Engine Engine Ion Engine Propulsion Wheel Wheel Wheel Utility ECM Suite Device ECM Suite Storage Medium Matter Pod Protection Light Armor Plating Weapon Light Assault Rifle Ballistic Gun Light Assault Rifle Build | -11 -10 -9 ------- Run | Yrd Mat Mat Slots Evolved 4 | 3 . 1 Power . | . . . Propulsion 1 | 1 . . Utility 2 | 2 . . Weapon 1 | . . 1 Parts Attached 12 | 7 5 . Power 1 | 1 . . Engine 1 | 1 . . Core . | . . . Reactor . | . . . Propulsion 3 | 3 . . Treads . | . . . Leg . | . . . Wheel 3 | 3 . . Hover . | . . . Flight . | . . . Utility 7 | 2 5 . Device 3 | 1 2 . Storage 2 | 1 1 . Processor . | . . . Hackware . | . . . Protection 2 | . 2 . Artifact . | . . . Weapon 1 | 1 . . Energy Gun . | . . . Energy Cannon . | . . . Ballistic Gun 1 | 1 . . Ballistic Cannon . | . . . Launcher . | . . . Special Weapon . | . . . Impact Weapon . | . . . Slashing Weapon . | . . . Piercing Weapon . | . . . Special Melee Weapon . | . . . Unidentified Prototypes . | . . . Parts Lost . | . . . Power . | . . . Propulsion . | . . . Utility . | . . . Weapon . | . . . Highest Loss Streak . | . . . To Critical Strikes . | . . . Average Backups . | . . . Power . | . . . Propulsion . | . . . Utility . | . . . Weapon . | . . . Tool/Special . | . . . Unused Backups . | . . . Power . | . . . Propulsion . | . . . Utility . | . . . Weapon . | . . . Tool/Special . | . . . Average Slot Usage (%) 98 | . 99 91 Engine 13 | . 14 12 Wheel 27 | . 28 26 Device 22 | . 23 12 Storage 15 | . 15 12 Protection 2 | . 1 12 Ballistic Gun 13 | . 14 12 Peak Build Rating 7 | 6 7 7 Average Rating 6 | 4 6 7 On Entrance 4 | . 6 7 Avg Prop Armor Cover (%) . | . . . Naked Turns . | . . . Heaviest Build 13 | 8 13 13 Greatest Support 26 | 26 20 20 Greatest Overweight (x) 1 | 1 . . Average Overweight (x) . | . . . Largest Inventory Capacity 2 | . . 2 Average Capacity . | . . 1 Most Carried . | . . . Average Carried . | . . . Final Capacity 2 | . . 2 Final Carried . | . . . Class Distribution -------------------- 100% | Mutant Dominant Class ---------------- Mutant | -10/Materials Mutant | -9/Materials Resources | -11 -10 -9 ----------- Run | Yrd Mat Mat Matter Collected 482 | 352 130 . Remotely . | . . . Salvage Created 278 | 193 85 . Parts 22 | 14 8 . Haulers Intercepted . | . . . Recyclers Shooed . | . . . Parts Field Recycled . | . . . Retrieved Matter . | . . . Parts Self-Destructed . | . . . Prevented . | . . . Parts Restored . | . . . Kills | -11 -10 -9 ------- Run | Yrd Mat Mat Combat Hostiles Destroyed 4 | . 4 . Guns 4 | . 4 . Classes Destroyed 6 | 3 3 . Worker 2 | 2 . . Tunneler 4 | 4 . . Recycler 1 | 1 . . Operator 1 | . 1 . Swarmer 3 | . 3 . Grunt 1 | . 1 . Best Kill Streak 2 | 2 1 . Combat Bots Only 1 | . 1 . Max Kills in Single Turn 1 | 1 1 . Gunslinging . | . . . Exploded . | . . . Melee . | . . . Uniques/NPCs Destroyed . | . . . Combat | -11 -10 -9 -------- Run | Yrd Mat Mat Hostile Shots Fired 24 | . 24 . Missed 10 | . 10 . Hits 14 | . 14 . Projectile 14 | . 14 . Damage Taken 118 | . 118 . Core 102 | . 102 . Absorbed by Shields . | . . . Redirected to Core 52 | . 52 . Core Remaining (%) 99 | 100 98 . Volleys Fired 86 | 56 30 . Largest 1 | 1 1 . Hottest 20 | 20 20 . Shots Fired 86 | 56 30 . Gun 86 | 56 30 . Cannon . | . . . Launcher . | . . . Special . | . . . Kinetic 86 | 56 30 . Thermal . | . . . Explosive . | . . . Electromagnetic . | . . . Robot Hit Streak 6 | 6 3 . Robot Miss Streak 6 | 5 6 . Penetration Max . | . . . Secondary Targets . | . . . Shots Hit Robots 46 | 34 12 . Core Hits 23 | 14 9 . Critical Kills . | . . . Critical Parts Destroyed . | . . . Critical Strikes . | . . . Melee Attacks . | . . . Impact . | . . . Slashing . | . . . Piercing . | . . . Sneak Attacks . | . . . Combat Hostiles . | . . . Follow-up Attacks . | . . . Damage Inflicted 356 | 255 101 . Guns 356 | 255 101 . Cannons . | . . . Explosions . | . . . Melee . | . . . Ramming . | . . . Kinetic 356 | 255 101 . Thermal . | . . . Explosive . | . . . Electromagnetic . | . . . Impact . | . . . Slashing . | . . . Piercing . | . . . Highest Corruption . | . . . Average Corruption . | . . . Corruption Purged . | . . . Corruption Blocked . | . . . Overload Shots . | . . . Overflow Damage . | . . . Projectiles . | . . . Explosions . | . . . Melee . | . . . Knockbacks . | . . . Impact . | . . . Kinetic . | . . . Secondary . | . . . Self-Inflicted Damage . | . . . Shots . | . . . Rammed . | . . . Targets Rammed . | . . . Kicked . | . . . Crushed . | . . . Highest Temperature . | . . . Average Temperature . | . . . Received Heat Transfer 18 | . 18 . Siege Activations . | . . . Martial Activations . | . . . Shielding Activations . | . . . Robots Disrupted . | . . . Combat Hostiles . | . . . Robots Corrupted . | . . . Combat Hostiles . | . . . Parts Fried . | . . . Impact Corruptions . | . . . Robots Melted . | . . . Combat Hostiles . | . . . Parts Melted . | . . . Heat Transferred . | . . . Parts Sabotaged . | . . . Parts Stolen . | . . . Parts Stripped . | . . . Power Chain Reactions . | . . . Alert | -11 -10 -9 ------- Run | Yrd Mat Mat Maximum Alert Level . | . . . Low Security (%) 100 | 100 100 100 Level 1 . | . . . Level 2 . | . . . Level 3 . | . . . Level 4 . | . . . Level 5 . | . . . High Security . | . . . Max Security . | . . . Peak Influence 39 | 5 39 . Initial . | . . . Average 5 | 1 7 . Influence Increases 174 | 35 139 . Destroy 0b10 Robot/C 80 | . 80 . Destroy 0b10 Robot/NC 40 | 35 5 . Destroy Leader 20 | . 20 . Successful Hack 4 | . 4 . Partial Spotted 30 | . 30 . Influence Decreases 174 | 35 139 . Time Decay 147 | 35 112 . Purge Threat 27 | . 27 . Squads Dispatched 1 | . 1 . Investigation . | . . . Extermination . | . . . Reinforcement 1 | . 1 . Assault . | . . . Garrison . | . . . Intercept . | . . . Searches Triggered . | . . . Construction Impeded . | . . . Haulers Reinforced . | . . . Active Scanning Responses . | . . . Cargo Convoy Interrupts . | . . . Stealth | -11 -10 -9 --------- Run | Yrd Mat Mat Distress Signals 3 | . 3 . Communications Jammed . | . . . Distress Signals . | . . . Times Spotted 32 | . 32 . Peak Tracking Total 6 | . 6 . Tactical Retreats 8 | . 8 . ECM-based Alert Blocks 22 | . 22 . Traps | -11 -10 -9 ------- Run | Yrd Mat Mat Traps Triggered . | . . . Indirectly . | . . . Trap Hack Attempts . | . . . Triggered . | . . . Disarmed . | . . . Reprogrammed . | . . . Reused . | . . . Traps Extracted . | . . . Installed . | . . . Triggered . | . . . Machines | -11 -10 -9 ---------- Run | Yrd Mat Mat Machines Disabled . | . . . Max in Single Turn . | . . . Machines Repaired . | . . . Machines Dismantled . | . . . Machines Sabotaged . | . . . Overloaded Fab Kills . | . . . Hacking | -11 -10 -9 --------- Run | Yrd Mat Mat Machines Accessed 6 | . 6 . Terminals 6 | . 6 . Fabricators . | . . . Repair Stations . | . . . Recycling Units . | . . . Scanalyzers . | . . . Garrison Access . | . . . Total Hacks 25 | . 25 . Successful 15 | . 15 . Failed 10 | . 10 . Catastrophic . | . . . Database Lockouts . | . . . Manual 19 | . 19 . Terminals 25 | . 25 . Fabricators . | . . . Repair Stations . | . . . Recycling Units . | . . . Scanalyzers . | . . . Garrison Access . | . . . Terminal Hacks 8 | . 8 . Record 1 | . 1 . Robot Analysis 4 | . 4 . Terminal Index 1 | . 1 . Unreport Threat 2 | . 2 . Fabricator Hacks . | . . . Repair Station Hacks . | . . . Recycling Unit Hacks . | . . . Scanalyzer . | . . . Garrison Access Hacks . | . . . Unauthorized Hacks 7 | . 7 . Terminals 7 | . 7 . Assimilate 1 | . 1 . Botnet 6 | . 6 . Fabricators . | . . . Repair Stations . | . . . Recycling Units . | . . . Scanalyzers . | . . . Garrison Access . | . . . Data Cores Recovered . | . . . Used . | . . . Hacking Detections 6 | . 6 . Full Trace Events 1 | . 1 . Feedback Events . | . . . Feedback Blocked . | . . . Robot Schematics Acquired . | . . . Robots Built . | . . . Authchips . | . . . Time . | . . . Total Robot Build Rating . | . . . Part Schematics Acquired . | . . . Parts Built . | . . . Authchips . | . . . Time . | . . . Total Part Build Rating . | . . . Part Studies Acquired . | . . . Parts Repaired . | . . . Time . | . . . Parts Recycled . | . . . Recycled Matter . | . . . Retrieved Matter . | . . . Retrieved Components . | . . . Parts Scanalyzed . | . . . Part Schematics Acquired . | . . . Parts Damaged . | . . . Bothacking | -11 -10 -9 ------------ Run | Yrd Mat Mat Used RIF Installer . | . . . Robots Hacked . | . . . Non-combat . | . . . Combat . | . . . Robot Hacks Applied . | . . . Relay Couplers Released . | . . . Fabnet Peak Effective % . | . . . Robots Rewired . | . . . Allies Hacked . | . . . Hacks Repelled . | . . . Allies | -11 -10 -9 -------- Run | Yrd Mat Mat Total Allies . | . . . Largest Group . | . . . Highest-Rated Group . | . . . Highest-Rated Ally . | . . . Total Orders . | . . . Ally Attacks . | . . . Total Damage . | . . . Kills . | . . . Allies Corrupted . | . . . Allies Melted . | . . . Intel | -11 -10 -9 ------- Run | Yrd Mat Mat Active Infowar (turns) 746 | 124 579 43 Seismic 225 | 124 101 . ECM 521 | . 478 43 Robot Analysis Total 4 | . 4 . Derelict Logs Recovered . | . . . Drone Launches . | . . . Drone Recoveries . | . . . Exploration | -11 -10 -9 ------------- Run | Yrd Mat Mat Turns Passed 849 | 225 581 43 Spaces Moved 494 | 133 308 53 Core 5 | 5 . . Treads . | . . . Legs . | . . . Wheels 489 | 128 308 53 Hover . | . . . Flight . | . . . Fastest Speed 50 | 50 80 80 Average Speed 80 | 81 80 80 Slowest Speed 100 | 100 80 80 Overloaded Moves . | . . . Propulsion Burnouts . | . . . Robots Hopped . | . . . Potential Cave-ins . | . . . Cave-ins Triggered . | . . . Exploration Rate (%) 20 | 6 49 6 Regions Visited 2 Branch Regions . Pre-discovered Areas . | . . . Known Exits Taken . | . . . Unknown Exits Taken 2 | 1 1 . Scrap Searched . | . . . Spaces Dug . | . . . Terrain Destroyed . | . . . Melee . | . . . Projectile . | . . . AOE . | . . . Terrain Rammed . | . . . Walls Destroyed . | . . . Machines Disabled . | . . . Actions | -11 -10 -9 --------- Run | Yrd Mat Mat Total 873 | 202 617 54 Wait 271 | 4 267 . Move 492 | 132 307 53 Hop . | . . . Pick Up . | . . . Fast Attach 11 | 6 5 . Attach . | . . . Detach . | . . . Swap 2 | 2 . . Drop 7 | 2 4 1 Fire 86 | 56 30 . Melee . | . . . Ram . | . . . Kick . | . . . Crush . | . . . Escape Stasis . | . . . Rewire . | . . . Trap . | . . . Miscellaneous 4 | . 4 . Route ------- -11/Scrapyard -10/Materials (discovered 3 exits: [*Mat x2] / [*Min]) -9/Materials History --------- Turn | Location | Event 16 | -11/Scrapyard | Upgraded with Propulsion slot (x1) 16 | -11/Scrapyard | Upgraded with Utility slot (x2) 31 | -11/Scrapyard | Discovered new exit (range 15) 226 | -11/Scrapyard | Entered Materials 293 | -10/Materials | Discovered new exit (range 9) 302 | -10/Materials | Build established: Mutant 736 | -10/Materials | Discovered new exit (range 14) 759 | -10/Materials | Discovered new exit (range 13) 807 | -10/Materials | Entered another Materials area 809 | -9/Materials | Reached level 2 813 | -9/Materials | Upgraded with Weapon slot (x1) 850 | -9/Materials | Self-destructed Last Messages --------------- K-class workers perform menial tasks such as clearing debris to facilitate work by other robots. Their built-in compact recycling unit can break down almost any form of debris into reusable matter. As K-01 Serfs are extremely cheap to produce and perform no vital function, despite their size they are among the weakest robot designs with the most exposed core. >>Analysis(T-07 Excavator) Downloading analysis... T-07 Excavator Tier: 1 T-class tunnelers analyze subsurface integrity and open new areas for expansion. LOCATION=UNKNOWN GOAL=ESCAPE 00809_ Reached level 2. 00813_ Upgraded: Weapon Slot (+1) 00813_ Upgraded: Inventory Capacity (+2) 00813_ Upgraded: TH Resistance % (+5) 00850_ Dropped Lgt. Assault Rifle. [Achievement: Back For More] Map ----- +----------------------------------------------------+ | ????????????????????????????# #????????????????? | | ????????????????????????????# #????????????????? | | ????????????????????????????# #????????????????? | | ????????????????????????????# #????????????????? | | ????????????????????????????# #????????????????? | | ????????????????????????????# #????????????????? | | ????????????????????????????# #????????????????? | | ????######################### #????????????????? | | ? #????????????????? | | ? #????????????????? | | ????????########+############ #????????????????? | | ???????????????# #???????# #????????????????? | | ???????????????# #???????# #????????????????? | | ???????????????# #???????# #????????????????? | | ???????????????# #######?# #????????????????? | | ???????????????# ## # #????????????????? | | ???????????????# ## # #????????????????? | | ???????????????# ## + #########+###????? | | ???????????????# ## # ???? | | ???????????????# ## # ???? | | ???????????????####### ?# ############?????? | | ?????????????????????######?# #????????????????? | | ??????????????????########### #????????????????? | | ??????????????????#] # #????????????????? | | ??????????????????# ! + +????????????????? | | ??????????????????# @[ # #????????????????? | | ??????????????????# # #????????????????? | | ??????????????????########### #????????????????? | | ????????????????????????????##+##????????????????? | | ?????????????????????????????????????????????????? | | ?????????????????????????????????????????????????? | | ?????????????????????????????????????????????????? | | ?????????????????????????????????????????????????? | | ?????????????????????????????????????????????????? | | ?????????????????????????????????????????????????? | | ?????????????????????????????????????????????????? | | ?????????????????????????????????????????????????? | | ?????????????????????????????????????????????????? | | ?????????????????????????????????????????????????? | | ?????????????????????????????????????????????????? | | ?????????????????????????????????????????????????? | | ?????????????????????????????????????????????????? | | ?????????????????????????????????????????????????? | | ?????????????????????????????????????????????????? | | ?????????????????????????????????????????????????? | | ?????????????????????????????????????????????????? | | ?????????????????????????????????????????????????? | | ?????????????????????????????????????????????????? | | ?????????????????????????????????????????????????? | | ?????????????????????????????????????????????????? | +----------------------------------------------------+ Best States ------------- Heat Dissipation 31 Energy Generation 10 Energy Capacity 250 Matter Stores 400 Matter Capacity 450 Sight Range 17 Robot Scan Range 2 Terrain Scan Density 10 ECM Strength 2 Armor Coverage 150 Resistance: TH 5 Weapon Shielding 33 Evasion (%) 44 Offensive Hacking 10 Defensive Hacking 5 Item Schematics ----------------- None Robot Schematics ------------------ None Fabricated ------------ Nothing Repaired ---------- Nothing Studied --------- None Alien Tech Used ----------------- None Achievements -------------- Back For More Challenges ------------ None RPGLIKE | -11 -10 -9 --------- Run | Yrd Mat Mat Levels Raised 1 | . . 1 XP Earned 5000 | 3000 500 1500 XP Spent 4400 | 3000 . 1400 Upgrades 14 | 10 . 4 Propulsion Slot 1 | 1 . . Utility Slot 2 | 2 . . Weapon Slot 1 | . . 1 Heat Dissipation 1 | 1 . . Inventory Capacity 2 | . . 2 Sight Range 1 | 1 . . Sensor Range 1 | 1 . . Hack Attack % 2 | 2 . . Hack Defense % 1 | 1 . . TH Resistance % 1 | . . 1 KI Damage % 1 | 1 . . Protomatter Created 30 | . 30 . Integrity Restored 90 | . 90 . Core 90 | . 90 . Protomatter Decayed . | . . . Game ------ Seed SegregatorImprovedWartreads Manual? 0 Play Time 00:23:37 Cumulative 151.0 hours Start 2026.06.23 @ 21:33:19 End 2026.06.23 @ 22:06:10 Sessions 1 Manual Loads 0 Difficulty Rogue Special Mode Winter2019/RPGLIKE Game No. 50 Rogue 16 Adventurer 34 Explorer 0 Win Type - Total 2 Types 2/0/0/0/0/0/0/0/0/0 Lore% 30 Gallery% 44 Achievement% 29 Wizard Run 0 Options --------- Layout 0 ASCII 0 Keyboard 0 Movement Mouse Keybinds 0 Fullscreen 2 Font 18/Terminus Map View 76x50 Zoom Use 0% Tactical HUD 1 Map Filters NONE Filters NONE Steam 1 RUN: 7da00559-2f07-4721-9afc-d7a59279145f